bitfinex-derivatives/quotes_ETHF0:USTF0_20240905
["timestamp","ask_amount","ask_price","bid_price","bid_amount"]
[1725502336717,3.5406,2445.9,2445.8,0.00612295]
[1725502337028,2.4865962,2445.9,2445.8,0.00612295]
[1725502337526,0.3606,2445.9,2445.8,0.00612295]
[1725502338410,1.9511818,2445.9,2445.8,0.00612295]
[1725502339326,0.3606,2445.9,2445.8,0.00612295]
[1725502339512,0.3606,2445.9,2445.8,0.29231295]
[1725502340415,0.3606,2445.9,2445.8,0.00612295]
[1725502340919,1.9511818,2445.9,2445.8,0.00612295]
[1725502341329,0.3606,2445.9,2445.8,0.29231295]
[1725502341619,1.5905818,2446.0,2445.9,0.28617]
[1725502341828,1.9472818,2446.1,2446.0,0.28616]
[1725502343325,0.3567,2446.1,2446.0,0.28616]
[1725502344118,1.9472818,2446.1,2445.9,0.64967]
[1725502344321,1.94508301,2446.1,2445.9,0.64967]
[1725502344920,1.94508301,2446.1,2446.0,0.28616]
[1725502345524,0.3567,2446.1,2446.0,0.28616]
[1725502345726,1.58838301,2446.2,2446.1,0.28615]
[1725502345926,1.58838301,2446.2,2446.0,3.2078]
[1725502345927,1.98128301,2446.3,2446.2,0.28614]
[1725502346131,1.58838301,2446.3,2446.2,0.28614]
[1725502346326,1.58838301,2446.3,2446.1,0.28614]
[1725502346530,1.58838301,2446.3,2446.0,0.3833]
[1725502346727,1.58838301,2446.3,2446.2,0.28614]
[1725502347233,1.58838301,2446.4,2446.3,0.28613]
[1725502347435,0.7841,2446.7,2446.6,0.28609]
[1725502347436,1.58838301,2446.7,2446.6,0.28609]
[1725502347643,1.58838301,2446.8,2446.6,0.28609]
[1725502347832,1.58838301,2446.8,2446.3,0.7383]
[1725502347833,5.67558301,2446.7,2446.3,0.7383]
[1725502348030,1.94908301,2446.7,2446.5,0.2861]
[1725502348525,1.94908301,2446.7,2446.3,0.7383]
[1725502348526,1.94908301,2446.7,2446.4,0.28611]
[1725502348735,1.94908301,2446.7,2446.5,0.2861]
[1725502348935,1.94908301,2446.7,2446.1,4.197]
[1725502348936,1.58838301,2446.6,2446.4,0.2861]
[1725502349129,1.58838301,2446.6,2446.5,0.2861]
[1725502349330,1.58838301,2446.6,2446.2,3.5811]
[1725502349633,1.58838301,2446.7,2446.6,0.28609]
[1725502350436,6.2131962,2446.7,2446.4,0.28611]
[1725502350736,6.2131962,2446.7,2446.2,0.3733]
[1725502350737,1.5876336,2446.6,2446.5,0.2861]
[1725502351039,1.5876336,2446.7,2446.5,0.2861]
[1725502351543,1.5876336,2446.6,2446.5,0.2861]
[1725502352343,2.1259962,2446.8,2446.6,0.28609]
[1725502352642,1.58786049,2446.7,2446.6,0.28609]
[1725502352943,1.58786049,2446.8,2446.7,0.28608]
[1725502355736,1.58786049,2446.9,2446.8,0.28607]
[1725502356138,0.3683,2447.0,2446.9,0.28606]
[1725502357542,0.3683,2447.0,2446.8,0.28606]
[1725502357838,1.58813491,2446.9,2446.8,0.28606]
[1725502358043,1.58813491,2446.9,2446.5,0.2861]
[1725502358044,8.85533491,2446.9,2446.5,0.2861]
[1725502358245,5.3059962,2446.6,2446.3,0.28612]
[1725502358449,5.3059962,2446.6,2446.2,0.3976]
[1725502358450,1.58811168,2446.4,2446.2,0.28613]
[1725502358947,6.06001168,2446.3,2446.0,0.28616]
[1725502359149,1.58811168,2446.2,2446.0,0.28616]
[1725502359649,8.85611168,2446.2,2446.0,0.28616]
[1725502359847,8.85611168,2446.2,2446.1,0.28615]
[1725502360153,4.76811168,2446.2,2445.8,3.21392295]
[1725502360453,4.76811168,2446.2,2446.0,0.28615]
[1725502360649,1.58811168,2446.1,2446.0,0.28615]
[1725502360850,1.58811168,2446.2,2446.1,0.28615]
[1725502361151,2.5098962,2446.3,2446.2,0.28614]
[1725502361350,2.5098962,2446.3,2446.1,0.28614]
[1725502361545,1.58859164,2446.2,2446.1,0.28614]
[1725502361741,2.1259962,2446.2,2445.8,0.29230295]
[1725502362045,1.58859822,2446.0,2445.9,0.28617]
[1725502363246,1.58859822,2446.0,2445.8,0.29230295]
[1725502363450,1.58859822,2446.1,2445.8,0.29230295]
[1725502363638,1.58859822,2446.0,2445.9,0.28617]
[1725502363843,1.58859822,2446.1,2446.0,0.28616]
[1725502365553,2.1259962,2446.2,2446.0,0.28616]
[1725502365847,2.1259962,2446.2,2446.1,0.28615]
[1725502366252,6.2139962,2446.2,2446.1,0.28615]
[1725502367148,6.2139962,2446.2,2445.9,0.3813]
[1725502367350,2.1259962,2446.2,2446.1,0.28615]
[1725502367847,6.2139962,2446.2,2446.1,0.28615]
[1725502368248,2.1259962,2446.2,2446.1,0.28615]
[1725502370552,2.1259962,2446.3,2446.2,0.28614]
[1725502371248,0.3782,2446.4,2446.3,0.28613]
[1725502371249,2.1259962,2446.4,2446.3,0.28613]
[1725502371449,2.1259962,2446.4,2446.3,3.49393]
[1725502371758,2.1259962,2446.5,2446.4,0.28612]
[1725502372259,2.1259962,2446.5,2446.4,0.64852]
[1725502372453,2.65749525,2446.6,2446.5,0.2861]
[1725502372654,2.65749525,2446.6,2446.1,0.3723]
[1725502372855,1.59131161,2446.3,2446.1,0.3723]
[1725502373153,1.59131161,2446.2,2446.1,0.65845]
[1725502374447,1.59131161,2446.2,2446.1,4.74645]
[1725502377451,2.12174882,2446.4,2446.3,0.28613]
[1725502377657,2.12174882,2446.4,2446.3,3.49393]
[1725502378353,2.65749525,2446.5,2446.3,3.49393]
[1725502378648,2.65749525,2446.5,2446.4,0.28612]
[1725502380657,2.65749525,2446.6,2446.5,0.2861]
[1725502380852,3.2078,2446.7,2446.6,0.28609]
[1725502381160,3.2078,2446.7,2446.5,0.2861]
[1725502381161,3.42347819,2446.7,2446.5,0.2861]
[1725502381348,3.2078,2446.7,2446.6,0.28609]
[1725502381554,3.2078,2446.7,2446.5,0.2861]
[1725502381749,3.2078,2446.7,2446.5,0.28609]
[1725502382557,3.2078,2446.7,2446.6,0.28609]
[1725502382759,3.18,2446.8,2446.7,0.28608]
[1725502383074,6.58625012,2446.8,2446.7,0.28608]
[1725502383258,6.58625012,2446.8,2446.4,0.28611]
[1725502383259,10.67345012,2446.8,2446.4,0.28611]
[1725502383559,10.67345012,2446.8,2446.3,0.28612]
[1725502383560,3.81730294,2446.7,2446.3,0.28612]
[1725502383766,2.6555689,2446.4,2446.3,0.28612]
[1725502384262,2.6555689,2446.5,2446.4,0.28612]
[1725502384460,2.65572635,2446.6,2446.5,0.2861]
[1725502385760,2.12471077,2446.6,2446.5,0.2861]
[1725502386265,2.12471077,2446.6,2446.5,0.6835]
[1725502387160,2.12471077,2446.6,2446.5,1.39877]
[1725502387469,2.12471077,2446.7,2446.6,0.28609]
[1725502387658,2.12471077,2446.7,2446.6,3.85889]
[1725502387866,2.12471077,2446.8,2446.7,0.28608]
[1725502388367,2.65572635,2446.9,2446.8,0.28607]
[1725502388564,2.12478807,2446.9,2446.8,0.28607]
[1725502388764,2.12478807,2446.9,2446.8,4.37327]
[1725502388961,2.12478807,2447.0,2446.9,0.28606]
[1725502389264,2.12478807,2447.1,2447.0,0.28605]
[1725502389467,0.00612295,2447.2,2447.1,0.28603]
[1725502389468,2.13091102,2447.2,2447.1,0.28603]
[1725502389765,2.13091102,2447.2,2447.1,4.75993]
[1725502391569,0.00612295,2447.2,2447.1,0.67353]
[1725502391762,2.13091102,2447.2,2446.7,0.19994113]
[1725502391976,1.59241637,2447.0,2446.9,0.28606]
[1725502392467,2.12478807,2447.1,2447.0,0.28605]
[1725502392864,2.13091102,2447.2,2447.0,0.28605]
[1725502393069,2.12478807,2447.1,2447.0,0.28605]
[1725502393475,2.12478807,2447.1,2446.6,7.4048]
[1725502393667,1.59182758,2446.8,2446.6,4.48309]
[1725502394073,1.59182758,2446.8,2446.7,0.28608]
[1725502394570,1.59182758,2446.8,2446.6,0.28609]
[1725502395165,1.59182758,2446.8,2446.7,0.28608]
[1725502396167,1.59182758,2446.8,2446.6,0.28609]
[1725502397871,1.59182758,2446.8,2446.7,0.28608]
[1725502401577,2.89438807,2447.0,2446.8,0.28607]
[1725502402879,2.89438807,2447.0,2446.5,0.3627]
[1725502403075,1.59040102,2446.8,2446.7,0.28607]
[1725502404074,1.59040102,2446.8,2446.6,0.28609]
[1725502404372,1.59040102,2446.8,2446.7,0.28608]
[1725502404572,4.0872,2446.7,2446.0,4.197]
[1725502404776,1.59009029,2446.2,2445.9,0.28616]
[1725502404973,1.59009029,2446.1,2445.9,0.28616]
[1725502405172,1.96549029,2446.1,2445.9,0.28616]
[1725502405370,1.96549029,2446.1,2446.0,0.28616]
[1725502406775,1.97039029,2446.2,2446.0,0.28616]
[1725502406984,1.97039029,2446.2,2446.1,0.28615]
[1725502407181,1.59009029,2446.2,2446.1,0.28615]
[1725502409568,1.59009029,2446.2,2446.1,4.37415]
[1725502410576,1.59009029,2446.4,2446.2,0.28614]
[1725502410776,2.12012038,2446.5,2446.4,0.28612]
[1725502410777,1.59009029,2446.5,2446.4,0.28612]
[1725502410987,2.12012038,2446.7,2446.5,0.2861]
[1725502410988,1.59009029,2446.6,2446.5,0.2861]
[1725502411483,2.12012038,2446.7,2446.6,0.28609]
[1725502412679,2.65015048,2446.8,2446.6,0.28609]
[1725502413183,2.12074265,2446.7,2446.6,0.28609]
[1725502413383,2.12075235,2446.7,2446.6,0.28609]
[1725502413582,9.91735048,2446.7,2446.3,0.7747]
[1725502413776,2.12089018,2446.5,2446.4,0.28612]
[1725502414686,3.05405048,2446.6,2446.4,0.28612]
[1725502414891,2.12115047,2446.5,2446.4,0.28612]
[1725502415787,1.59109281,2446.5,2446.4,0.28612]
[1725502416578,1.59109281,2446.5,2446.4,4.37332]
[1725502416783,1.59109281,2446.5,2446.4,10.37332]
[1725502416983,1.59109281,2446.7,2446.6,0.28609]
[1725502417186,1.59109281,2446.7,2446.6,3.49389]
[1725502417383,1.59109281,2446.7,2446.6,7.58109]
[1725502417783,1.59109281,2446.8,2446.7,0.28608]
[1725502418089,1.59109281,2446.8,2446.7,0.67258]
[1725502418381,1.59109281,2446.8,2446.7,4.75978]
[1725502419587,1.59109281,2446.8,2446.7,10.96570131]
[1725502419785,1.59109281,2446.9,2446.8,0.28607]
[1725502419987,1.59109281,2446.9,2446.8,10.76817]
[1725502420387,1.59109281,2447.0,2446.9,0.28606]
[1725502420683,1.59109281,2447.0,2446.9,7.58026]
[1725502421577,1.59109281,2447.1,2447.0,0.28605]
[1725502421992,1.59721576,2447.2,2447.1,0.28603]
[1725502422686,0.00612295,2447.2,2447.1,0.28603]
[1725502422888,1.59721576,2447.2,2447.1,0.28603]
[1725502423592,1.59721576,2447.2,2447.1,3.46603]
[1725502423593,0.00612295,2447.2,2447.1,3.46603]
[1725502423984,0.00612295,2447.2,2447.1,0.28603]
[1725502424488,0.00612295,2447.2,2447.1,7.55243]
[1725502424993,0.00612295,2447.2,2447.1,13.55243]
[1725502425491,0.00612295,2447.2,2447.1,14.26752]
[1725502425888,0.00612295,2447.2,2447.1,13.55243]
[1725502427096,1.59109281,2447.7,2447.1,13.98149]
[1725502427294,1.59109281,2447.7,2447.6,0.28598]
[1725502427897,1.59109281,2447.8,2447.7,0.28596]
[1725502429996,1.59109281,2447.9,2447.8,0.28595]
[1725502430403,1.59721576,2448.0,2447.9,0.28594]
[1725502430586,0.00612295,2448.0,2447.9,0.28594]
[1725502431691,0.00612295,2448.0,2447.9,4.37074]
[1725502433189,0.00612295,2448.0,2447.9,10.37074]
[1725502433393,1.59109281,2448.4,2448.3,0.28589]
[1725502433588,1.59109281,2448.5,2448.3,0.28589]
[1725502434396,1.59109281,2448.5,2448.4,0.28588]
[1725502434593,1.59721576,2448.6,2448.4,0.28588]
[1725502434994,1.59721576,2448.6,2448.4,0.28587]
[1725502435293,0.00612295,2448.6,2448.4,0.28587]
[1725502435497,0.00612295,2448.6,2448.5,0.28587]
[1725502435797,0.00612295,2448.6,2448.5,5.2103842]
[1725502436298,0.7885,2449.1,2448.5,10.9245142]
[1725502436497,0.7885,2449.1,2448.8,0.28583]
[1725502436793,0.7885,2449.1,2448.9,0.3418342]
[1725502437404,0.00612295,2449.2,2449.0,3.2078]
[1725502437594,0.00612295,2449.2,2449.1,0.2858]
[1725502437894,0.00612295,2449.2,2449.1,0.0560142]
[1725502440404,0.00612295,2449.2,2449.1,0.3418142]
[1725502440596,0.00612295,2449.2,2449.1,0.0560142]
[1725502440793,0.00612295,2449.2,2449.1,0.3418142]
[1725502441600,0.00612295,2449.2,2449.1,3.5218142]
[1725502442003,0.00612295,2449.2,2449.1,4.3055142]
[1725502442213,0.00612295,2449.2,2449.1,1.1255142]
[1725502442908,0.00612295,2449.2,2449.1,0.0560142]
[1725502443214,4.08932295,2449.2,2449.1,0.0560142]
[1725502443505,4.37511295,2449.2,2449.1,0.0560142]
[1725502443709,4.47082295,2449.2,2449.1,0.0560142]
[1725502447715,4.47082295,2449.2,2449.1,0.3418142]
[1725502447910,0.00612295,2449.2,2449.1,0.3418142]
[1725502449107,0.00612295,2449.2,2449.1,0.0560142]
[1725502449613,0.2858,2449.1,2448.8,0.00612295]
[1725502449814,0.3983,2449.0,2448.8,0.00612295]
[1725502450008,4.4815,2449.0,2448.8,0.00612295]
[1725502450419,4.4619,2448.9,2448.8,0.00612295]
[1725502453708,4.74772,2448.9,2448.8,0.00612295]
[1725502454615,10.4619,2448.9,2448.2,0.38]
[1725502454818,7.07954,2448.8,2448.4,0.28587]
[1725502455009,6.7937,2448.8,2448.5,0.28587]
[1725502455205,3.6137,2448.8,2448.5,0.28587]
[1725502455419,3.6137,2448.8,2448.2,0.38]
[1725502455622,3.6137,2448.8,2448.5,0.28587]
[1725502456816,3.6137,2448.8,2448.3,0.00612295]
[1725502457017,0.4059,2448.8,2448.7,0.28585]
[1725502457416,4.4899,2448.8,2448.7,0.28585]
[1725502458421,0.28585,2448.7,2448.3,0.29201295]
[1725502458816,0.3875,2448.6,2448.4,0.28588]
[1725502459322,0.3875,2448.6,2448.3,0.29200295]
[1725502459717,0.3875,2448.6,2448.3,0.00612295]
[1725502459914,0.3875,2448.6,2448.4,0.28588]
[1725502460217,4.4715,2448.6,2448.3,0.29201295]
[1725502460418,0.3875,2448.6,2448.3,0.29201295]
[1725502461114,0.67336,2448.6,2448.3,0.00612295]
[1725502461419,3.49368,2448.5,2448.3,0.00612295]
[1725502462319,0.28588,2448.4,2448.3,0.00612295]
[1725502462515,5.96097281,2448.4,2448.3,0.00612295]
[1725502462824,6.35917281,2448.4,2448.3,0.00612295]
[1725502463918,6.35234283,2448.4,2448.3,0.00612295]
[1725502464121,4.4822,2448.4,2448.3,0.00612295]
[1725502464823,6.60335047,2448.4,2448.3,0.00612295]
[1725502465020,4.4822,2448.4,2448.3,0.00612295]
[1725502465328,6.88923047,2448.4,2448.3,0.00612295]
[1725502466021,12.88923047,2448.4,2448.3,0.00612295]
[1725502466214,0.28592,2448.1,2447.8,0.3694]
[1725502466416,1.58548085,2447.9,2447.8,0.28595]
[1725502466824,5.67145981,2447.9,2447.7,0.28596]
[1725502467034,5.67145981,2447.9,2447.5,0.7562]
[1725502467035,1.58585981,2447.9,2447.6,0.3695]
[1725502467225,1.58585981,2447.9,2447.7,0.28596]
[1725502467415,1.58585981,2447.8,2447.7,0.28596]
[1725502468325,5.70019742,2448.0,2447.7,0.28596]
[1725502468326,1.58585981,2447.9,2447.7,0.28596]
[1725502468530,1.58585981,2447.8,2447.7,0.28596]
[1725502468715,1.58585981,2447.8,2447.6,0.66159295]
[1725502469119,1.58585981,2447.7,2447.6,0.66159295]
[1725502469520,1.58585981,2447.7,2447.6,0.37562295]
[1725502469718,5.32177447,2447.8,2447.6,0.00612295]
[1725502469719,8.90037447,2447.8,2447.6,0.00612295]
[1725502469920,4.0856,2447.7,2447.6,0.00612295]
[1725502470314,10.0856,2447.7,2447.6,0.00612295]
[1725502470516,13.01402808,2447.7,2447.6,0.00612295]
[1725502470815,12.72806808,2447.7,2447.6,0.00612295]
[1725502471210,10.37156,2447.7,2447.6,0.00612295]
[1725502471422,13.01402808,2447.7,2447.6,0.00612295]
[1725502471622,10.0856,2447.7,2447.6,0.00612295]
[1725502471824,13.01402808,2447.7,2447.6,0.00612295]
[1725502472413,13.01405546,2447.7,2447.6,0.00612295]
[1725502472616,10.37156,2447.7,2447.6,0.00612295]
[1725502473221,13.01344387,2447.7,2447.6,0.00612295]
[1725502473429,10.37156,2447.7,2447.6,0.00612295]
[1725502474817,0.71495,2447.6,2447.0,0.403]
[1725502475017,1.58456493,2447.2,2447.0,0.403]
[1725502477126,7.97236493,2447.3,2447.0,0.403]
[1725502477319,8.25838493,2447.3,2447.0,0.403]
[1725502477532,7.97236493,2447.3,2447.0,0.403]
[1725502477833,8.25837493,2447.3,2447.0,0.403]
[1725502478029,7.97236493,2447.3,2447.0,0.403]
[1725502478229,3.2078,2447.3,2447.0,0.68904]
[1725502478530,3.2078,2447.3,2447.0,0.403]
[1725502478831,3.2078,2447.3,2447.0,0.68904]
[1725502479528,3.2078,2447.3,2447.1,0.28603]
[1725502480318,3.2078,2447.3,2447.2,0.28602]
[1725502480523,3.2078,2447.3,2447.1,0.28603]
[1725502480924,3.2078,2447.3,2447.0,0.403]
[1725502480925,4.79236493,2447.6,2447.0,0.403]
[1725502481129,4.79236493,2447.6,2447.3,0.28601]
[1725502481338,3.2078,2447.6,2447.4,0.7632]
[1725502481529,3.49378,2447.6,2447.4,1.1342]
[1725502482728,5.07834493,2447.6,2447.4,1.1342]
[1725502483227,3.49378,2447.6,2447.4,1.1342]
[1725502483422,0.28599,2447.5,2447.4,1.1342]
[1725502483638,0.286,2447.4,2447.1,0.28603]
[1725502483833,0.286,2447.4,2447.2,0.4057]
[1725502484136,3.84079,2447.5,2447.2,0.4057]
[1725502486034,0.286,2447.4,2447.2,0.4057]
[1725502486923,6.3878,2447.3,2446.9,0.00612295]
[1725502487128,0.28605,2447.0,2446.9,0.00612295]
[1725502487937,6.7783,2447.3,2446.9,0.00612295]
[1725502487938,0.28604,2447.1,2446.9,0.00612295]
[1725502488135,0.28603,2447.2,2446.9,0.00612295]
[1725502488436,0.28603,2447.2,2446.9,0.29217295]
[1725502489329,0.28603,2447.2,2446.9,0.00612295]
[1725502489630,0.28603,2447.2,2446.9,0.29217295]
[1725502491431,0.28603,2447.2,2446.9,0.00612295]
[1725502492334,3.49383,2447.2,2446.9,0.00612295]
[1725502492732,0.28603,2447.1,2446.9,0.00612295]
[1725502493533,3.2078,2447.2,2446.9,0.00612295]
[1725502493735,0.28604,2447.1,2446.9,0.00612295]
[1725502495339,4.79236493,2447.2,2446.9,0.00612295]
[1725502495340,0.28605,2447.0,2446.9,0.00612295]
[1725502496931,2.24310493,2447.1,2446.9,0.00612295]
[1725502499246,1.58456493,2447.0,2446.9,0.00612295]
[1725502499551,1.58456493,2447.1,2447.0,0.28605]
[1725502499847,4.79236493,2447.2,2447.1,0.28603]
[1725502500243,4.79236493,2447.2,2446.9,0.00612295]
[1725502500244,1.58456493,2447.2,2446.9,0.00612295]
[1725502500445,1.58456493,2447.3,2447.2,0.28602]
[1725502500751,1.58456493,2447.6,2447.3,0.28601]
[1725502501044,8.78651324,2447.8,2447.0,10.4742]
[1725502501045,1.58456493,2447.7,2447.5,0.28599]
[1725502501442,1.58456493,2447.7,2447.6,0.4072]
[1725502501647,1.58456493,2447.7,2447.6,0.69318]
[1725502502045,4.79236493,2447.8,2447.7,0.28596]
[1725502502453,3.2078,2447.8,2447.6,0.4072]
[1725502502650,8.50055324,2447.8,2447.4,0.7756]
[1725502502848,1.58535932,2447.6,2447.4,0.7756]
[1725502503544,1.58535932,2447.7,2447.5,0.28599]
[1725502503749,5.32055324,2447.8,2447.5,0.28599]
[1725502503750,1.58535932,2447.6,2447.5,0.28599]
[1725502505748,1.58535932,2447.6,2447.5,4.37159]
[1725502505951,1.58535932,2447.6,2447.5,4.0856]
[1725502506149,2.11275324,2447.7,2447.5,4.0856]
[1725502506345,2.11275324,2447.7,2447.6,0.28598]
[1725502507146,2.11275324,2447.7,2447.6,10.37158]
[1725502507345,1.58819166,2447.7,2447.6,10.37158]
[1725502507547,1.58819166,2447.8,2447.7,0.28596]
[1725502507954,1.58819166,2447.8,2447.7,4.37156]
[1725502508548,2.11275324,2447.9,2447.4,0.3944]
[1725502508549,5.32055324,2447.9,2447.4,0.3944]
[1725502508756,1.58842365,2447.6,2447.4,0.68039]
[1725502508952,1.58842365,2447.5,2447.4,0.3944]
[1725502509160,1.58842365,2447.5,2447.4,0.6804]
[1725502509449,1.58842365,2447.5,2447.4,0.3944]
[1725502509654,1.58842365,2447.5,2447.4,0.6804]
[1725502510557,2.11275324,2447.6,2447.4,0.3944]
[1725502510755,1.58875838,2447.5,2447.4,0.68039]
[1725502511154,2.11275324,2447.6,2447.4,0.68039]
[1725502512257,2.11275324,2447.5,2447.1,0.28603]
[1725502512456,1.58946922,2447.3,2447.1,0.65543]
[1725502512663,1.58946922,2447.2,2447.1,0.65543]
[1725502513158,3.70222246,2447.2,2446.9,4.20312295]
[1725502513365,1.58940113,2447.0,2446.9,0.00612295]
[1725502513555,10.02991155,2447.0,2446.9,0.00612295]
[1725502513858,0.28606,2446.9,2446.4,0.67301]
[1725502514061,2.11848757,2446.6,2446.4,0.67301]
[1725502514255,2.11848757,2446.6,2446.4,0.3869]
[1725502514457,2.11848757,2446.6,2446.4,0.67301]
[1725502514958,2.11848757,2446.5,2446.4,0.3869]
[1725502515758,0.693,2446.6,2446.3,0.00612295]
[1725502515959,2.64758479,2446.4,2446.3,0.00612295]
[1725502516861,3.02178479,2446.5,2446.3,0.00612295]
[1725502517453,2.64758479,2446.4,2446.3,0.00612295]
[1725502518467,2.93370479,2446.4,2446.3,0.00612295]
[1725502518765,7.58192,2446.4,2446.3,0.00612295]
[1725502519157,7.2958,2446.4,2446.3,0.00612295]
[1725502519366,9.94092782,2446.4,2446.3,0.00612295]
[1725502519755,10.22704782,2446.4,2446.3,0.00612295]
[1725502520059,9.94092782,2446.4,2446.3,0.00612295]
[1725502520270,10.76192,2446.4,2446.3,0.00612295]
[1725502520868,7.2958,2446.4,2446.3,0.00612295]
[1725502521261,7.58192,2446.4,2446.3,0.00612295]
[1725502522665,10.22260502,2446.4,2446.3,0.00612295]
[1725502522858,9.93648502,2446.4,2446.3,0.00612295]
[1725502523062,3.01488502,2446.5,2446.3,0.00612295]
[1725502523365,2.11165192,2446.4,2446.3,0.00612295]
[1725502524163,10.76192,2446.4,2446.3,0.00612295]
[1725502524468,10.76192,2446.4,2445.7,0.3961]
[1725502524469,13.40032995,2446.4,2446.0,0.28616]
[1725502524669,1.58301029,2446.1,2446.0,0.28616]
[1725502525265,1.58301029,2446.1,2445.9,0.28617]
[1725502526165,1.97071029,2446.1,2445.9,0.28617]
[1725502526364,1.58301029,2446.1,2446.0,0.28616]
[1725502526572,1.58301029,2446.3,2446.2,0.28614]
[1725502526962,1.58301029,2446.4,2446.3,0.28613]
[1725502527970,1.58301029,2446.4,2446.2,0.28613]
[1725502528566,1.58301029,2446.4,2445.8,6.39188195]
[1725502528770,1.58301029,2446.4,2446.3,0.28613]
[1725502528970,1.58301029,2446.5,2446.3,0.28613]
[1725502529168,1.58301029,2446.5,2446.4,0.28612]
[1725502529475,1.58913324,2446.7,2446.1,3.2078]
[1725502529664,1.58913324,2446.7,2446.2,1.1776]
[1725502529866,1.58913324,2446.7,2446.6,0.28609]
[1725502530172,0.00612295,2446.7,2446.6,0.28609]
[1725502530364,0.00612295,2446.7,2446.6,10.77679]
[1725502531166,0.00612295,2446.7,2446.6,4.77679]
[1725502532868,0.00612295,2446.7,2446.6,0.68959]
[1725502533064,0.00612295,2446.7,2446.6,0.4035]
[1725502533266,0.00612295,2446.7,2446.3,0.28612]
[1725502533465,1.58913324,2446.7,2446.3,0.28612]
[1725502533670,1.58301029,2446.6,2446.3,0.28612]
[1725502534080,1.58301029,2446.6,2446.4,0.28611]
[1725502534276,1.58913324,2446.7,2446.3,0.28612]
[1725502534584,1.58913324,2446.7,2446.4,0.28611]
[1725502536378,1.58913324,2446.7,2446.2,1.1813]
[1725502536673,1.58913324,2446.7,2446.6,0.28609]
[1725502536877,1.58913324,2446.7,2446.5,0.2861]
[1725502537079,1.58913324,2446.7,2446.4,0.28611]
[1725502537975,0.2861,2446.6,2446.2,1.1813]
[1725502538177,1.58913324,2446.7,2446.2,1.1813]
[1725502538178,0.28611,2446.5,2446.2,1.1813]
[1725502538372,2.23652029,2446.5,2446.2,1.06283]
[1725502538778,1.58301029,2446.4,2446.2,1.06283]
[1725502539082,2.23652029,2446.5,2446.2,1.06283]
[1725502539379,2.23652029,2446.5,2445.9,0.3936]
[1725502539380,0.28612,2446.4,2445.9,0.3936]
[1725502539583,1.58301029,2446.4,2446.1,0.28614]
[1725502539976,1.58301029,2446.4,2446.2,0.28614]
[1725502540180,5.44432029,2446.5,2446.2,0.28614]
[1725502541983,4.79081029,2446.5,2446.2,0.28614]
[1725502542185,5.07691029,2446.5,2446.2,0.28614]
[1725502542682,5.07691029,2446.5,2446.1,0.28614]
[1725502542882,0.28612,2446.4,2446.1,0.28614]
[1725502543570,0.4043,2446.4,2446.1,0.28614]
[1725502543777,0.3942,2446.3,2446.1,0.28614]
[1725502544176,3.2078,2446.2,2445.8,0.00408195]
[1725502544580,3.2078,2446.2,2445.9,0.28617]
[1725502544788,3.49394,2446.2,2446.0,0.3732]
[1725502544984,5.07695029,2446.2,2446.0,0.3732]
[1725502545685,0.28615,2446.1,2445.8,0.00408195]
[1725502546080,0.373,2446.0,2445.8,0.00408195]
[1725502546285,0.373,2446.0,2445.8,0.29026195]
[1725502546676,0.373,2446.0,2445.9,0.28617]
[1725502547086,5.07695029,2446.2,2445.9,0.67187]
[1725502547285,5.44995029,2446.2,2445.9,0.67187]
[1725502549087,5.16381029,2446.2,2445.9,0.3857]
[1725502549390,1.97721029,2446.3,2446.2,0.28614]
[1725502549787,6.06521029,2446.3,2446.1,0.28614]
[1725502550093,1.97721029,2446.3,2446.1,0.28614]
[1725502550595,1.97721029,2446.3,2445.9,0.3857]
[1725502550783,1.97721029,2446.3,2445.8,0.00408195]
[1725502550784,1.58301029,2446.1,2445.8,0.00408195]
[1725502550984,0.67096,2446.0,2445.8,0.00408195]
[1725502551389,2.25397029,2446.0,2445.8,0.00408195]
[1725502551789,1.96781029,2446.0,2445.8,0.00408195]
[1725502552597,2.25397029,2446.0,2445.8,0.00408195]
[1725502553387,1.58301029,2445.9,2445.8,0.00408195]
[1725502554392,1.580536,2445.9,2445.8,0.00408195]
[1725502554605,4.0888,2445.9,2445.8,0.00408195]
[1725502554898,4.37497,2445.9,2445.8,0.00408195]
[1725502555193,7.58277,2445.9,2445.8,0.00408195]
[1725502555395,7.2966,2445.9,2445.8,0.00408195]
[1725502555898,7.58277,2445.9,2445.8,0.00408195]
[1725502558499,7.2966,2445.9,2445.8,0.00408195]
[1725502558699,3.49395,2446.2,2445.8,0.29026195]
[1725502558997,0.28615,2446.1,2445.9,0.3786]
[1725502559194,3.49395,2446.2,2445.9,0.3786]
[1725502559394,3.2078,2446.2,2445.9,0.66477]
[1725502560192,3.49394,2446.2,2445.9,0.66477]
[1725502560395,3.2078,2446.2,2446.0,0.28616]
[1725502560601,3.2078,2446.2,2446.1,0.28615]
[1725502561901,3.2078,2446.2,2446.0,0.68206]
[1725502562093,3.2078,2446.2,2446.0,0.3959]
[1725502562289,3.2078,2446.2,2446.0,0.68206]
[1725502562494,3.2078,2446.2,2446.1,0.28615]
[1725502562795,3.2078,2446.2,2446.0,0.68206]
[1725502563393,3.16895428,2446.4,2446.1,4.088]
[1725502563600,3.16895428,2446.4,2446.1,0.28615]
[1725502563997,0.28613,2446.3,2446.0,0.3959]
[1725502564203,0.28615,2446.2,2446.0,0.3959]
[1725502564405,0.66695,2446.2,2446.0,0.3959]
[1725502564597,0.3808,2446.2,2446.0,0.3959]
[1725502564798,0.66694,2446.2,2446.0,0.3959]
[1725502565303,0.3808,2446.2,2446.0,0.3959]
[1725502565504,3.18,2446.3,2446.0,0.68205]
[1725502566093,3.46613,2446.3,2446.0,0.3959]
[1725502566500,3.18,2446.3,2446.0,0.68206]
[1725502566804,3.18,2446.3,2446.1,0.28615]
[1725502567006,3.16895428,2446.4,2446.2,0.28613]
[1725502567197,10.04606761,2446.5,2446.3,0.3958]
[1725502567395,6.34895428,2446.5,2446.3,0.3958]
[1725502567810,6.34895428,2446.5,2446.3,0.68193]
[1725502568013,6.34895428,2446.5,2446.3,0.3958]
[1725502568201,6.34895428,2446.5,2446.3,0.68192]
[1725502568401,6.34895428,2446.5,2446.3,0.3958]
[1725502568807,6.34895428,2446.5,2446.3,0.68192]
[1725502569708,6.34895428,2446.5,2446.4,0.28612]